Cogmind - Beta 14 @@@ ROGUE MODE // 2025.03.04 @ 23:29:54 Player: DietSnapple Result: Destroyed by as-93016 with Assembled Blade Performance ------------- Evolutions (0) 0 Regions Visited (2) 400 Robots Destroyed (9) 45 Value Destroyed (149) 149 Prototype IDs (1) 20 Alien Tech Used (0) 0 Bonus (0) 0 TOTAL SCORE: 614 Bonus ------- None Cogmind --------- Core Integrity 0/250 Matter 300/300 Energy 100/100 System Corruption 0% Temperature Cool (0) Movement Core (2350) Ox46 Location -10/Mines Parts ------- > --- POWER (1) -------- (None) > --- PROPULSION (2) --- (None) > --- UTILITY (2) ------ Cargo Storage Unit > --- WEAPON (2) ------- Mini Grenade Launcher > --- INVENTORY (30) --- Ion Engine Ion Engine Improved Heat Sink Cooling System Cooling System Small Matter Pod (50) Improved Terrain Scanner Tractor Beam Improved Assault Rifle Improved Assault Rifle Grenade Launcher Mini Grenade Launcher Mini Grenade Launcher Mining Laser Peak State ------------ > --- POWER ------------ Ion Engine > --- PROPULSION ------- Light Treads Light Treads > --- UTILITY ---------- Small Storage Unit Improved Terrain Scanner > --- WEAPON ----------- Improved Assault Rifle Improved Assault Rifle > --- INVENTORY -------- Ion Engine Ion Engine ECM Suite ECM Suite Grenade Launcher Mini Grenade Launcher Mini Grenade Launcher Mining Laser [Rating: 14] Favorites ----------- Power Ion Engine Engine Ion Engine Propulsion Light Treads Treads Light Treads Leg Aluminum Leg Utility Cargo Storage Unit Device Improved Terrain Scanner Storage Cargo Storage Unit Weapon Improved Assault Rifle Energy Gun Small Laser Ballistic Gun Improved Assault Rifle Launcher Mini Grenade Launcher Build | -11 -10 -10 ------- Run | Yrd Mat Min Slots Evolved . | . . . Power . | . . . Propulsion . | . . . Utility . | . . . Weapon . | . . . Parts Attached 15 | 10 3 2 Power 1 | 1 . . Engine 1 | 1 . . Core . | . . . Reactor . | . . . Propulsion 4 | 4 . . Treads 2 | 2 . . Leg 2 | 2 . . Wheel . | . . . Hover . | . . . Flight . | . . . Utility 3 | 2 1 . Device 1 | 1 . . Storage 2 | 1 1 . Processor . | . . . Hackware . | . . . Protection . | . . . Artifact . | . . . Weapon 7 | 3 2 2 Energy Gun 2 | 2 . . Energy Cannon . | . . . Ballistic Gun 3 | 1 2 . Ballistic Cannon . | . . . Launcher 2 | . . 2 Special Weapon . | . . . Impact Weapon . | . . . Slashing Weapon . | . . . Piercing Weapon . | . . . Special Melee Weapon . | . . . Unidentified Prototypes 1 | . 1 . Parts Lost 4 | . . 4 Power 1 | . . 1 Propulsion 2 | . . 2 Utility . | . . . Weapon 1 | . . 1 Highest Loss Streak 3 | . . 3 To Critical Strikes . | . . . Average Slot Usage (%) 84 | . 89 81 Engine 12 | . 14 11 Treads 27 | . 28 27 Device 1 | . 4 . Storage 13 | . 13 14 Ballistic Gun 26 | . 26 25 Launcher 1 | . . 2 Peak Build Rating 14 | 9 14 13 Average Rating 11 | 6 12 12 On Entrance 7 | . 9 12 Naked Turns . | . . . Heaviest Build 151 | 14 151 151 Greatest Support 40 | 40 40 40 Greatest Overweight (x) 46 | 3 3 46 Average Overweight (x) 2 | . 1 3 Largest Inventory Capacity 30 | 8 30 30 Average Capacity 25 | 7 23 30 Most Carried 16 | 1 11 16 Average Carried 9 | . 7 13 Final Capacity 30 | 8 30 30 Final Carried 14 | 1 11 14 Class Distribution -------------------- 78% | Hauler-Mutant 21% | Mutant Dominant Class ---------------- Hauler-Mutant | -10/Materials Hauler-Mutant | -10/Mines Resources | -11 -10 -10 ----------- Run | Yrd Mat Min Matter Collected 599 | 263 . 336 Remotely . | . . . Salvage Created 413 | 138 38 237 Parts 20 | 6 3 11 Haulers Intercepted . | . . . Recyclers Shooed . | . . . Parts Field Recycled . | . . . Retrieved Matter . | . . . Parts Self-Destructed . | . . . Prevented . | . . . Kills | -11 -10 -10 ------- Run | Yrd Mat Min Combat Hostiles Destroyed 8 | . 1 7 Guns 5 | . 1 4 AOE 3 | . . 3 Classes Destroyed 5 | 3 1 1 Worker 1 | 1 . . Tunneler 3 | 2 . 1 Recycler 2 | 1 . 1 Grunt 3 | . 1 2 Assembled 5 | . . 5 Best Kill Streak 3 | 3 1 3 Combat Bots Only 3 | . 1 3 Max Kills in Single Turn 2 | 1 1 2 Gunslinging . | . . . Exploded 2 | . . 2 Melee . | . . . Uniques/NPCs Destroyed . | . . . Combat | -11 -10 -10 -------- Run | Yrd Mat Min Hostile Shots Fired 76 | . 2 74 Missed 23 | . . 23 Damage Taken 1057 | . 20 1037 Core 256 | . . 256 Absorbed by Shields . | . . . Core Remaining (%) 100 | 100 . . Volleys Fired 31 | 8 1 22 Largest 2 | 2 2 2 Hottest 60 | 60 46 60 Shots Fired 62 | 16 2 44 Gun 56 | 16 2 38 Cannon . | . . . Launcher 6 | . . 6 Special . | . . . Kinetic 48 | 8 2 38 Thermal 8 | 8 . . Explosive 6 | . . 6 Electromagnetic . | . . . Robot Hit Streak 7 | 3 4 7 Robot Miss Streak 6 | 2 . 6 Penetration Max . | . . . Secondary Targets . | . . . Shots Hit Robots 34 | 8 1 25 Core Hits 21 | 5 1 15 Critical Kills . | . . . Critical Parts Destroyed . | . . . Critical Strikes . | . . . Melee Attacks . | . . . Impact . | . . . Slashing . | . . . Piercing . | . . . Sneak Attacks . | . . . Combat Hostiles . | . . . Follow-up Attacks . | . . . Damage Inflicted 644 | 109 29 506 Guns 491 | 109 29 353 Cannons . | . . . Explosions 153 | . . 153 Melee . | . . . Ramming . | . . . Kinetic 417 | 35 29 353 Thermal 74 | 74 . . Explosive 153 | . . 153 Electromagnetic . | . . . Impact . | . . . Slashing . | . . . Piercing . | . . . Highest Corruption . | . . . Average Corruption . | . . . Corruption Purged . | . . . Corruption Blocked . | . . . Overload Shots . | . . . Overflow Damage . | . . . Projectiles . | . . . Explosions . | . . . Melee . | . . . Knockbacks . | . . . Impact . | . . . Kinetic . | . . . Secondary . | . . . Self-Inflicted Damage . | . . . Shots . | . . . Rammed . | . . . Targets Rammed . | . . . Kicked . | . . . Crushed . | . . . Highest Temperature 35 | . . 35 Average Temperature 11 | . . 11 Received Heat Transfer 154 | . 12 142 Siege Activations . | . . . Robots Corrupted . | . . . Combat Hostiles . | . . . Parts Fried . | . . . Impact Corruptions . | . . . Robots Melted . | . . . Combat Hostiles . | . . . Parts Melted . | . . . Heat Transferred 175 | 175 . . Parts Sabotaged . | . . . Parts Stolen . | . . . Parts Stripped . | . . . Power Chain Reactions . | . . . Alert | -11 -10 -10 ------- Run | Yrd Mat Min Peak Influence 50 | 20 20 50 Initial 13 | . 13 7 Average 11 | 9 8 13 Maximum Alert Level . | . . . Low Security (%) 100 | 100 100 100 Level 1 . | . . . Level 2 . | . . . Level 3 . | . . . Level 4 . | . . . Level 5 . | . . . High Security . | . . . Max Security . | . . . Squads Dispatched . | . . . Investigation . | . . . Extermination . | . . . Reinforcement . | . . . Assault . | . . . Garrison . | . . . Intercept . | . . . Searches Triggered . | . . . Construction Impeded . | . . . Haulers Reinforced . | . . . Active Scanning Responses . | . . . Cargo Convoy Interrupts . | . . . Stealth | -11 -10 -10 --------- Run | Yrd Mat Min Distress Signals . | . . . Communications Jammed . | . . . Distress Signals . | . . . Times Spotted 10 | . 1 9 Peak Tracking Total 3 | . 1 3 Tactical Retreats 1 | . . 1 Traps | -11 -10 -10 ------- Run | Yrd Mat Min Traps Triggered . | . . . Indirectly . | . . . Trap Hack Attempts . | . . . Triggered . | . . . Disarmed . | . . . Reprogrammed . | . . . Reused . | . . . Traps Extracted . | . . . Installed . | . . . Triggered . | . . . Machines | -11 -10 -10 ---------- Run | Yrd Mat Min Machines Disabled . | . . . Max in Single Turn . | . . . Machines Repaired . | . . . Machines Dismantled . | . . . Machines Sabotaged . | . . . Overloaded Fab Kills . | . . . Hacking | -11 -10 -10 --------- Run | Yrd Mat Min Machines Accessed 1 | . 1 . Terminals 1 | . 1 . Fabricators . | . . . Repair Stations . | . . . Recycling Units . | . . . Scanalyzers . | . . . Garrison Access . | . . . Total Hacks 3 | . 3 . Successful 1 | . 1 . Failed 2 | . 2 . Catastrophic . | . . . Database Lockouts . | . . . Manual 3 | . 3 . Terminals 3 | . 3 . Fabricators . | . . . Repair Stations . | . . . Recycling Units . | . . . Scanalyzers . | . . . Garrison Access . | . . . Terminal Hacks 1 | . 1 . Hauler Manifests 1 | . 1 . Fabricator Hacks . | . . . Repair Station Hacks . | . . . Recycling Unit Hacks . | . . . Scanalyzer . | . . . Garrison Access Hacks . | . . . Unauthorized Hacks . | . . . Terminals . | . . . Fabricators . | . . . Repair Stations . | . . . Recycling Units . | . . . Scanalyzers . | . . . Garrison Access . | . . . Data Cores Recovered . | . . . Used . | . . . Hacking Detections 1 | . 1 . Full Trace Events . | . . . Feedback Events . | . . . Feedback Blocked . | . . . Robot Schematics Acquired . | . . . Robots Built . | . . . Authchips . | . . . Time . | . . . Total Robot Build Rating . | . . . Part Schematics Acquired . | . . . Parts Built . | . . . Authchips . | . . . Time . | . . . Total Part Build Rating . | . . . Parts Repaired . | . . . Time . | . . . Parts Recycled . | . . . Recycled Matter . | . . . Retrieved Matter . | . . . Retrieved Components . | . . . Parts Scanalyzed . | . . . Part Schematics Acquired . | . . . Parts Damaged . | . . . Bothacking | -11 -10 -10 ------------ Run | Yrd Mat Min Used RIF Installer . | . . . Robots Hacked . | . . . Non-combat . | . . . Combat . | . . . Robot Hacks Applied . | . . . Relay Couplers Released . | . . . Fabnet Peak Effective % . | . . . Robots Rewired . | . . . Allies Hacked . | . . . Hacks Repelled . | . . . Allies | -11 -10 -10 -------- Run | Yrd Mat Min Total Allies . | . . . Largest Group . | . . . Highest-Rated Group . | . . . Highest-Rated Ally . | . . . Total Orders . | . . . Ally Attacks . | . . . Total Damage . | . . . Kills . | . . . Allies Corrupted . | . . . Allies Melted . | . . . Intel | -11 -10 -10 ------- Run | Yrd Mat Min Robot Analysis Total . | . . . Derelict Logs Recovered 1 | . . 1 Drone Launches . | . . . Drone Recoveries . | . . . Exploration | -11 -10 -10 ------------- Run | Yrd Mat Min Turns Passed 2715 | 297 973 1445 Spaces Moved 803 | 127 340 336 Core 24 | 23 . 1 Treads 749 | 74 340 335 Legs 30 | 30 . . Wheels . | . . . Hover . | . . . Flight . | . . . Fastest Speed 50 | 50 160 400 Average Speed 312 | 144 280 407 Slowest Speed 2350 | 200 400 2350 Overloaded Moves . | . . . Propulsion Burnouts . | . . . Robots Hopped . | . . . Cave-ins Triggered . | . . . Exploration Rate (%) 27 | 7 31 44 Regions Visited 2 Branch Regions 1 Pre-discovered Areas . | . . . Known Exits Taken . | . . . Unknown Exits Taken 2 | 1 1 . Scrap Searched 2 | . . 2 Spaces Dug . | . . . Terrain Destroyed 57 | . . 57 Melee . | . . . Projectile . | . . . AOE 57 | . . 57 Terrain Rammed . | . . . Walls Destroyed . | . . . Machines Disabled . | . . . Actions | -11 -10 -10 --------- Run | Yrd Mat Min Total 949 | 220 359 370 Wait 75 | 75 . . Move 801 | 126 339 336 Hop . | . . . Pick Up 17 | 1 13 3 Fast Attach 8 | 7 1 . Attach 2 | . . 2 Detach 2 | . . 2 Swap 5 | 3 2 . Drop 3 | . 3 . Fire 31 | 8 1 22 Melee . | . . . Ram . | . . . Kick . | . . . Crush . | . . . Escape Stasis . | . . . Rewire 5 | . . 5 Trap . | . . . Miscellaneous . | . . . Route ------- -11/Scrapyard -10/Materials -10/Mines (discovered 1 exit: [*Mat]) History --------- Turn | Location | Event 2 | -11/Scrapyard | Met Revision 17 25 | -11/Scrapyard | Discovered new exit (range 15) 298 | -11/Scrapyard | Entered Materials 318 | -10/Materials | Build established: Mutant 418 | -10/Materials | Discovered new exit (range 7) 886 | -10/Materials | Build established: Hauler-Mutant 1271 | -10/Materials | Entered Mines 1280 | -10/Mines | Met a Derelict bent on vengeance 1355 | -10/Mines | Found a damaged Exp. Sensor Array with a note attached 1881 | -10/Mines | Discovered new exit (range 5) 2331 | -10/Mines | Assembled infested the area 2336 | -10/Mines | Assisted by a Guerilla fighting off Assembled 2694 | -10/Mines | Core integrity fell below 50% 2715 | -10/Mines | Core integrity fell below 20% 2716 | -10/Mines | Destroyed by as-93016 with Assembled Blade Last Messages --------------- coming from, and they're closing on this area, come on!" 02408_ as-45181 destroyed. 02430_ Ion Engine destroyed. 02440_ as-27179 destroyed. 02507_ Acquired 19 matter. 02579_ T-07 Excavator destroyed. 02584_ as-69937 destroyed. 02586_ as-49381 destroyed. 02586_ as-28752 destroyed. 02592_ The unstable cave ceiling collapses. 02605_ Acquired 7 matter. 02609_ Extracted 100 matter. 02613_ Acquired 19 matter. 02633_ The unstable cave ceiling collapses. 02676_ Acquired 22 matter. 02677_ Lgt. Treads destroyed. 02686_ The unstable cave ceiling collapses. 02688_ Lgt. Treads destroyed. 02693_ U-05 Engineer destroyed. 02693_ Mni. Grenade Launcher destroyed. Map ----- +----------------------------------------------------+ | ????????????????????## ### #??????????????? | | ??????????? #????????#####?# *!#??????????????? | | ?????????? ?????????????## ! #??????????????? | | ?????????? ????????????## #??????????????? | | ?????????? ????????????#% #??????????????? | | ????????? #????????### #??????????????? | | ?????????# ??????## #??????????????? | | ????????????# ###### #??????????????? | | ?????????????# %%! ##??????????????? | | ?????????????# = #???????????????? | | ?????????????# # ### ############????? | | ?????????????# ##??# ### = [ #????? | | ????????????????????# =%! #????? | | ????????????????????###### ##### #### #????? | | ?????????????????????????## ####???# #??# #????? | | ??????????????????######### #????? #??# #????? | | ??????????????????# #???? ####??# #????? | | ??????????????????# ########???# #?????# #????? | | ??????????????????# #?????????! ##????# #????? | | ??????????????????# #???????? #????# #????? | | ??????????????????# #??????? ! #????# #????? | | ??????????######### #??????# #?????# ##???? | | ??????????# # #??#### #??????## ##??? | | ??????????# # #### #??????## #??? | | ?????????## ## ## #????#### #??? | | ????????## # =% a@ #?????### < ##??? | | ???????## a!%#####????## #???? | | ???????# # |##????????# ##???? | | ???????# !* ##????????# ##???? | | ??????## !%! ##???????## #???? | | ?????## = ! #????????###=/ #??? | | ?????# # # #??????????## #??? | | ????## ##### ## ##???????????# #??? | | ???## #???## ####????????????## * #??? | | #### ###### ?????????????????## #??? | | ##############??????????## #??? | | ##### ## #???????????# #??? | | ### ##### ## #???????????## ##??? | | ### """ """ #????????????####???? | | % """ """ #???????????????????? | | ## ####### """ """ #???????????????????? | | ### #????# #???????????????????? | | ##?## ] #????#############???????????????????? | | ????## ##????????????????????????????????????? | | ?????#####?????????????????????????????????????? | | ???????????????????????????????????????????????? | | ???????????????????????????????????????????????? | | ???????????????????????????????????????????????? | | ???????????????????????????????????????????????? | | | +----------------------------------------------------+ Best States ------------- Heat Dissipation 25 Energy Generation 10 Energy Capacity 250 Matter Stores 300 Matter Capacity 300 Sight Range 16 Terrain Scan Range 16 Terrain Scan Density 10 Evasion (%) 45 Recoil Reduction 2 Item Schematics ----------------- None Robot Schematics ------------------ None Fabricated ------------ Nothing Alien Tech Used ----------------- None Achievements -------------- Tank Challenges ------------ None Game ------ Seed LinearSpreadExoskeleton Manual? 0 Play Time 00:12:03 Cumulative 5.2 hours Start 2025.03.04 @ 23:21:18 End 2025.03.04 @ 23:29:54 Sessions 1 Manual Loads 0 Difficulty Rogue Special Mode None Game No. 16 Rogue 9 Adventurer 7 Explorer 0 Win Type - Total 0 Types 0/0/0/0/0/0/0/0/0 Lore% 1 Gallery% 9 Achievement% 8 Wizard Run 0 Options --------- Layout 1 ASCII 0 Keyboard 1 Movement Vi Keybinds 0 Fullscreen 1 Font 24/Smallcaps Map View 76x35 Zoom Use 8% Tactical HUD 1 Map Filters NONE Filters NONE Steam 1 RUN: a525cbab-ddaf-4258-8e1e-e3438fad8d8d